fUST/lending_fUST_20250212
["ID","MTS","AMOUNT","RATE_DAILY","PERIOD"]
[352774483,1739303450121,-500.0,0.00011917,2]
[352774484,1739303450130,-173.120272,0.00011917,2]
[352774485,1739303450140,-277.157456,0.00011917,2]
[352774486,1739303450152,-277.157456,0.00011917,2]
[352774487,1739303450162,-500.0,0.00011917,2]
[352774488,1739303450171,-500.0,0.00011917,2]
[352774489,1739303450181,-151.0,0.00011917,2]
[352774490,1739303450191,-855.330248,0.00011917,2]
[352774491,1739303450200,-855.330248,0.00011917,2]
[352774492,1739303450210,-3045.468305,0.00011917,2]
[352774493,1739303450219,-3045.468305,0.00011917,2]
[352774494,1739303450229,-500.0,0.00011917,2]
[352774495,1739303450238,-500.0,0.00011917,2]
[352774496,1739303450248,-425.516405,0.00011917,2]
[352774497,1739303450258,-425.516405,0.00011917,2]
[352774498,1739303450267,-462.957425,0.00011917,2]
[352774499,1739303450276,-462.957425,0.00011917,2]
[352774500,1739303450286,-151.0,0.00011917,2]
[352774501,1739303450295,-254.958808,0.00011917,2]
[352774502,1739303450304,-1048.82,0.00011917,2]
[352774503,1739303450314,-758.1,0.00011917,2]
[352774504,1739303450324,-162.000257,0.00011917,2]
[352774505,1739303450334,-753.86,0.00011917,2]
[352774506,1739303450344,-162.000261,0.00011917,2]
[352774507,1739303450354,-507.04,0.00011917,2]
[352774508,1739303450364,-500.0,0.00011917,2]
[352774509,1739303450373,-500.0,0.00011917,2]
[352774510,1739303450383,-547.221696,0.00011917,2]
[352774511,1739303450393,-957.080128,0.00011917,2]
[352774512,1739303450405,-547.221692,0.00011917,2]
[352774513,1739303450415,-957.080138,0.00011917,2]
[352774514,1739303450425,-712.89,0.00011917,2]
[352774515,1739303450437,-436.73221082,0.00011917,2]
[352774516,1739303450451,-500.0,0.00011917,2]
[352774517,1739303450461,-11677.3,0.00011917,2]
[352774518,1739303450471,-926.69,0.00011917,2]
[352774519,1739303450481,-3567.5,0.00011917,2]
[352774520,1739303450492,-595.15,0.00011917,2]
[352774521,1739303450502,-1309.09,0.00011917,2]
[352774522,1739303450512,-500.0,0.00011917,2]
[352774523,1739303450522,-500.0,0.00011917,2]
[352774524,1739303450532,-500.0,0.00011917,2]
[352774525,1739303450542,-322.87097393,0.00011917,2]
[352774526,1739303450552,-500.0,0.00011917,2]
[352774527,1739303450562,-500.0,0.00011917,2]
[352774528,1739303450571,-681.09,0.00011917,2]
[352774529,1739303450581,-1265.35,0.00011917,2]
[352774530,1739303450591,-935.08,0.00011917,2]
[352774531,1739303450601,-500.0,0.00011917,2]
[352774532,1739303450610,-530.01,0.00011917,2]
[352774533,1739303450620,-510.18,0.00011917,2]
[352774534,1739303450630,-500.0,0.00011917,2]
[352774535,1739303450640,-151.0,0.00011917,2]
[352774536,1739303450652,-232.519384,0.00011917,2]
[352774537,1739303450662,-500.0,0.00011917,2]
[352774538,1739303450672,-232.519394,0.00011917,2]
[352774539,1739303450682,-500.0,0.00011917,2]
[352774540,1739303450692,-500.0,0.00011917,2]
[352774541,1739303450702,-500.0,0.00011917,2]
[352774542,1739303450711,-668.36,0.00011917,2]
[352774543,1739303450721,-1386.19,0.00011917,2]
[352774544,1739303450731,-4370.0,0.00011917,2]
[352774545,1739303450742,-500.0,0.00011917,2]
[352774546,1739303450751,-1808.29,0.00011917,2]
[352774547,1739303450761,-3000.0,0.00012,2]
[352774548,1739303450771,-500.1148036,0.00012,3]
[352774549,1739303450781,-1000.0,0.00012,12]
[352774550,1739303450790,-151.0,0.00012,2]
[352774551,1739303450800,-1582.02,0.00012,2]
[352774552,1739303450809,-245.003462,0.00012,2]
[352774553,1739303450818,-151.0,0.00012,2]
[352774554,1739303450827,-151.0,0.00012,2]
[352774555,1739303450837,-202.403061,0.00012,2]
[352774556,1739303450846,-202.403061,0.00012,2]
[352774557,1739303450856,-500.0,0.00012054,2]
[352774558,1739303450865,-199.51,0.00012054,2]
[352774559,1739303450875,-150.23,0.00012054,2]
[352774560,1739303450885,-150.23,0.00012054,2]
[352774561,1739303450895,-821.36,0.00012054,2]
[352774562,1739303450905,-151.0,0.00012054,2]
[352774563,1739303450915,-151.0,0.00012054,2]
[352774564,1739303450924,-151.0,0.00012054,2]
[352774565,1739303450933,-268.537964,0.00012054,2]
[352774566,1739303450943,-268.537964,0.00012054,2]
[352774567,1739303450952,-500.0,0.00012054,2]
[352774568,1739303450961,-156.520759,0.00012054,2]
[352774569,1739303450971,-156.520755,0.00012054,2]
[352774570,1739303450980,-258.834672,0.00012054,2]
[352774571,1739303450990,-500.0,0.00012054,2]
[352774572,1739303451000,-151.0,0.00012054,2]
[352774573,1739303451010,-202.403061,0.00012054,2]
[352774574,1739303451019,-202.403057,0.00012054,2]
[352774575,1739303451029,-500.0,0.00012054,2]
[352774576,1739303451038,-277.157456,0.00012054,2]
[352774577,1739303451047,-277.157456,0.00012054,2]
[352774578,1739303451057,-300.18132218,0.00012054,2]
[352774579,1739303451066,-375.78987698,0.00012054,2]
[352774580,1739303451076,-151.0,0.00012054,2]
[352774581,1739303451085,-855.330248,0.00012054,2]
[352774582,1739303451095,-855.33024,0.00012054,2]
[352774583,1739303451104,-3045.468305,0.00012054,2]
[352774584,1739303451114,-3045.468304,0.00012054,2]
[352774585,1739303451124,-500.0,0.00012054,2]
[352774586,1739303451133,-500.0,0.00012054,2]
[352774587,1739303451142,-425.516405,0.00012054,2]
[352774588,1739303451154,-425.516398,0.00012054,2]
[352774589,1739303451163,-462.957425,0.00012054,2]
[352774590,1739303451173,-462.957425,0.00012054,2]
[352774591,1739303451183,-151.0,0.00012054,2]
[352774592,1739303451193,-1048.82,0.00012054,2]
[352774593,1739303451202,-758.1,0.00012054,2]
[352774594,1739303451212,-753.86,0.00012054,2]
[352774595,1739303451221,-507.04,0.00012054,2]
[352774596,1739303451231,-500.0,0.00012054,2]
[352774597,1739303451240,-500.0,0.00012054,2]
[352774598,1739303451250,-712.89,0.00012054,2]
[352774599,1739303451260,-500.0,0.00012054,2]
[352774600,1739303451269,-11677.3,0.00012054,2]
[352774601,1739303451279,-926.69,0.00012054,2]
[352774602,1739303451289,-3567.5,0.00012054,2]
[352774603,1739303451298,-595.15,0.00012054,2]
[352774604,1739303451307,-1309.09,0.00012054,2]
[352774605,1739303451316,-500.0,0.00012054,2]
[352774606,1739303451326,-500.0,0.00012054,2]
[352774607,1739303451335,-500.0,0.00012054,2]
[352774608,1739303451345,-500.0,0.00012054,2]
[352774609,1739303451355,-500.0,0.00012054,2]
[352774610,1739303451365,-681.09,0.00012054,2]
[352774611,1739303451374,-1265.35,0.00012054,2]
[352774612,1739303451383,-935.08,0.00012054,2]
[352774613,1739303451393,-500.0,0.00012054,2]
[352774614,1739303451405,-530.01,0.00012054,2]
[352774615,1739303451415,-510.18,0.00012054,2]
[352774616,1739303451425,-500.0,0.00012054,2]
[352774617,1739303451435,-500.0,0.00012054,2]
[352774618,1739303451445,-550.99792565,0.00012054,2]
[352774619,1739303451457,-500.0,0.00012054,2]
[352774620,1739303451467,-500.0,0.00012054,2]
[352774621,1739303451475,-668.36,0.00012054,2]
[352774622,1739303451485,-1386.19,0.00012054,2]
[352774623,1739303451494,-4370.0,0.00012054,2]
[352774624,1739303451505,-500.0,0.00012054,2]
[352774625,1739303451514,-1808.29,0.00012054,2]
[352774626,1739303451523,-587.0,0.00012061,2]
[352774627,1739303451533,-160.0,0.00012069,3]
[352774628,1739303451542,-3000.0,0.00012091,2]
[352774629,1739303451551,-2000.0,0.000121,2]
[352774630,1739303451560,-268.537964,0.000121,2]
[352774631,1739303451569,-268.537956,0.000121,2]
[352774632,1739303451579,-160.0,0.00012163,4]
[352774633,1739303451587,-500.162,0.0001218,2]
[352774634,1739303451596,-2400.0,0.0001218,2]
[352774635,1739303451606,-821.36,0.00012191,2]
[352774636,1739303451615,-151.0,0.00012191,2]
[352774637,1739303451624,-245.003462,0.00012191,2]
[352774638,1739303451634,-151.0,0.00012191,2]
[352774639,1739303451643,-151.0,0.00012191,2]
[352774640,1739303451656,-500.0,0.00012191,2]
[352774641,1739303451666,-500.0,0.00012191,2]
[352774642,1739303451677,-500.0,0.00012191,2]
[352774643,1739303451687,-500.0,0.00012191,2]
[352774644,1739303451696,-500.0,0.00012191,2]
[352774645,1739303451706,-1048.82,0.00012191,2]
[352774646,1739303451717,-758.1,0.00012191,2]
[352774647,1739303451729,-753.86,0.00012191,2]
[352774648,1739303451739,-507.04,0.00012191,2]
[352774649,1739303451749,-500.0,0.00012191,2]
[352774650,1739303451758,-500.0,0.00012191,2]
[352774651,1739303451770,-712.89,0.00012191,2]
[352774652,1739303451781,-500.0,0.00012191,2]
[352774653,1739303451792,-11677.3,0.00012191,2]
[352774654,1739303451804,-926.69,0.00012191,2]
[352774655,1739303451814,-3567.5,0.00012191,2]
[352774656,1739303451825,-595.15,0.00012191,2]
[352774657,1739303451835,-1309.09,0.00012191,2]
[352774658,1739303451844,-500.0,0.00012191,2]
[352774659,1739303451853,-500.0,0.00012191,2]
[352774660,1739303451863,-500.0,0.00012191,2]
[352774661,1739303451873,-500.0,0.00012191,2]
[352774662,1739303451882,-500.0,0.00012191,2]
[352774663,1739303451892,-681.09,0.00012191,2]
[352774664,1739303451904,-1265.35,0.00012191,2]
[352774665,1739303451914,-935.08,0.00012191,2]
[352774666,1739303451923,-500.0,0.00012191,2]
[352774667,1739303451933,-530.01,0.00012191,2]
[352774668,1739303451944,-510.18,0.00012191,2]
[352774669,1739303451954,-500.0,0.00012191,2]
[352774670,1739303451964,-500.0,0.00012191,2]
[352774671,1739303451974,-500.0,0.00012191,2]
[352774672,1739303451983,-500.0,0.00012191,2]
[352774673,1739303451992,-668.36,0.00012191,2]
[352774674,1739303452002,-1386.19,0.00012191,2]
[352774675,1739303452013,-4370.0,0.00012191,2]
[352774676,1739303452023,-500.0,0.00012191,2]
[352774677,1739303452033,-1808.29,0.00012191,2]
[352774678,1739303452042,-500.0,0.00012211,2]
[352774679,1739303452053,-153.13268169,0.00012211,2]
[352774680,1739303452063,-261.34265796,0.00012211,2]
[352774681,1739303452071,-500.0,0.00012211,2]
[352774682,1739303452081,-251.77426011,0.00012211,2]
[352774683,1739303452090,-268.20913563,0.00012211,2]
[352774684,1739303452099,-500.0,0.00012211,2]
[352774685,1739303452109,-284.94011611,0.00012248,2]
[352774686,1739303452230,-500.0,0.00012248,2]
[352774687,1739303452241,-500.0,0.00012248,2]
[352774688,1739303452252,-500.0,0.00012248,2]
[352774689,1739303452261,-160.0,0.00012257,5]
[352774690,1739303452270,-500.57772834,0.00012259,2]
[352774691,1739303452279,-500.0,0.00012259,2]
[352774692,1739303452289,-500.0,0.00012259,2]
[352774693,1739303452299,-500.0,0.000123,2]
[352774694,1739303452310,-2000.0,0.000123,2]
[352774695,1739303452320,-500.0,0.00012328,2]
[352774696,1739303452331,-248.84,0.00012328,2]
[352774697,1739303452342,-248.87,0.00012328,2]
[352774698,1739303452351,-821.36,0.00012328,2]
[352774699,1739303452360,-151.0,0.00012328,2]
[352774700,1739303452370,-245.003462,0.00012328,2]
[352774701,1739303452380,-151.0,0.00012328,2]
[352774702,1739303452390,-500.0,0.00012328,2]
[352774703,1739303452402,-500.0,0.00012328,2]
[352774704,1739303452411,-497.10729308,0.00012328,2]
[352774705,1739303452421,-423.76970676,0.00012328,2]
[352774706,1739303452431,-541.68112079,0.00012328,2]
[352774707,1739303452440,-1048.82,0.00012328,2]
[352774708,1739303452451,-758.1,0.00012328,2]
[352774709,1739303452465,-753.86,0.00012328,2]
[352774710,1739303452474,-507.04,0.00012328,2]
[352774711,1739303452486,-500.0,0.00012328,2]
[352774712,1739303452497,-516.09329539,0.00012328,2]
[352774713,1739303452508,-712.89,0.00012328,2]
[352774714,1739303452517,-354.04078091,0.00012328,2]
[352774715,1739303452527,-11677.3,0.00012328,2]
[352774716,1739303452538,-926.69,0.00012328,2]
[352774717,1739303452548,-3567.5,0.00012328,2]
[352774718,1739303452559,-595.15,0.00012328,2]
[352774719,1739303452569,-1309.09,0.00012328,2]
[352774720,1739303452578,-500.0,0.00012328,2]
[352774721,1739303452588,-500.0,0.00012328,2]
[352774722,1739303452598,-500.0,0.00012328,2]
[352774723,1739303452607,-500.0,0.00012328,2]
[352774724,1739303452616,-500.0,0.00012328,2]
[352774725,1739303452626,-681.09,0.00012328,2]
[352774726,1739303452635,-1265.35,0.00012328,2]
[352774727,1739303452645,-935.08,0.00012328,2]
[352774728,1739303452655,-500.0,0.00012328,2]
[352774729,1739303452665,-530.01,0.00012328,2]
[352774730,1739303452675,-510.18,0.00012328,2]
[352774731,1739303452685,-500.0,0.00012328,2]
[352774732,1739303452696,-500.0,0.00012328,2]
[352774733,1739303452707,-500.0,0.00012328,2]
[352774734,1739303452716,-500.0,0.00012328,2]
[352774735,1739303452726,-668.36,0.00012328,2]
[352774736,1739303452736,-1386.19,0.00012328,2]
[352774737,1739303452747,-500.0,0.00012328,2]
[352774738,1739303452756,-4370.0,0.00012328,2]
[352774739,1739303452766,-1808.29,0.00012328,2]
[352774740,1739303452776,-500.0,0.00012344,2]
[352774741,1739303452786,-160.0,0.00012351,6]
[352774742,1739303452799,-500.21084549,0.00012385,2]
[352774743,1739303452809,-160.0,0.00012445,7]
[352774744,1739303452819,-821.36,0.00012465,2]
[352774745,1739303452828,-250.21072,0.00012465,2]
[352774746,1739303452838,-500.0,0.00012465,2]
[352774747,1739303452848,-500.0,0.00012465,2]
[352774748,1739303452858,-1048.82,0.00012465,2]
[352774749,1739303452869,-758.1,0.00012465,2]
[352774750,1739303452880,-753.86,0.00012465,2]
[352774751,1739303452890,-507.04,0.00012465,2]
[352774752,1739303452903,-500.0,0.00012465,2]
[352774753,1739303452915,-712.89,0.00012465,2]
[352774754,1739303452925,-11677.3,0.00012465,2]
[352774755,1739303452934,-926.69,0.00012465,2]
[352774756,1739303452944,-3567.5,0.00012465,2]
[352774757,1739303452953,-595.15,0.00012465,2]
[352774758,1739303452962,-1309.09,0.00012465,2]
[352774759,1739303452971,-500.0,0.00012465,2]
[352774760,1739303452981,-500.0,0.00012465,2]
[352774761,1739303452990,-500.0,0.00012465,2]
[352774762,1739303452999,-500.0,0.00012465,2]
[352774763,1739303453008,-500.0,0.00012465,2]
[352774764,1739303453017,-681.09,0.00012465,2]
[352774765,1739303453027,-1265.35,0.00012465,2]
[352774766,1739303453036,-935.08,0.00012465,2]
[352774767,1739303453045,-500.0,0.00012465,2]
[352774768,1739303453054,-530.01,0.00012465,2]
[352774769,1739303453063,-510.18,0.00012465,2]
[352774770,1739303453072,-500.0,0.00012465,2]
[352774771,1739303453082,-500.0,0.00012465,2]
[352774772,1739303453091,-500.0,0.00012465,2]
[352774773,1739303453100,-500.0,0.00012465,2]
[352774774,1739303453110,-668.36,0.00012465,2]
[352774775,1739303453119,-1386.19,0.00012465,2]
[352774776,1739303453128,-500.0,0.00012465,2]
[352774777,1739303453138,-4370.0,0.00012465,2]
[352774778,1739303453147,-1808.29,0.00012465,2]
[352774779,1739303453159,-151.0,0.000125,2]
[352774780,1739303453169,-2373.65726076,0.00012502,2]
[352774781,1739303453178,-160.0,0.00012539,8]
[352774782,1739303453187,-1800.0,0.00012568,2]
[352774783,1739303453197,-500.0,0.00012602,2]
[352774784,1739303453206,-821.36,0.00012602,2]
[352774785,1739303453215,-151.0,0.00012602,2]
[352774786,1739303453225,-245.003462,0.00012602,2]
[352774787,1739303453235,-500.0,0.00012602,2]
[352774788,1739303453244,-500.0,0.00012602,2]
[352774789,1739303453254,-1048.82,0.00012602,2]
[352774790,1739303453264,-758.1,0.00012602,2]
[352774791,1739303453273,-753.86,0.00012602,2]
[352774792,1739303453283,-507.04,0.00012602,2]
[352774793,1739303453292,-500.0,0.00012602,2]
[352774794,1739303453302,-712.89,0.00012602,2]
[352774795,1739303453311,-11677.3,0.00012602,2]
[352774796,1739303453321,-926.69,0.00012602,2]
[352774797,1739303453330,-3567.5,0.00012602,2]
[352774798,1739303453340,-595.15,0.00012602,2]
[352774799,1739303453349,-1309.09,0.00012602,2]
[352774800,1739303453358,-500.0,0.00012602,2]
[352774801,1739303453367,-500.0,0.00012602,2]
[352774802,1739303453376,-500.0,0.00012602,2]
[352774803,1739303453385,-500.0,0.00012602,2]
[352774804,1739303453394,-205.16630938,0.00012602,2]
[352774805,1739303453405,-681.09,0.00012602,2]
[352774806,1739303453415,-1265.35,0.00012602,2]
[352774807,1739303453425,-500.0,0.00012602,2]
[352774808,1739303453434,-530.01,0.00012602,2]
[352774809,1739303453444,-510.18,0.00012602,2]
[352774810,1739303453454,-500.0,0.00012602,2]
[352774811,1739303453465,-500.0,0.00012602,2]
[352774812,1739303453474,-500.0,0.00012602,2]
[352774813,1739303453483,-500.0,0.00012602,2]
[352774814,1739303453494,-668.36,0.00012602,2]
[352774815,1739303453504,-1386.19,0.00012602,2]
[352774816,1739303453513,-500.0,0.00012602,2]
[352774817,1739303453523,-4370.0,0.00012602,2]
[352774818,1739303453534,-1808.29,0.00012602,2]
[352774819,1739303453543,-256.15,0.00012603,2]
[352774820,1739303453552,-160.0,0.00012633,9]
[352774821,1739303453562,-529.0,0.000127,4]
[352774822,1739303453571,-160.0,0.00012727,10]
[352774823,1739303453580,-821.36,0.00012739,2]
[352774824,1739303453589,-500.0,0.00012739,2]
[352774825,1739303453599,-500.0,0.00012739,2]
[352774826,1739303453608,-1048.82,0.00012739,2]
[352774827,1739303453619,-758.1,0.00012739,2]
[352774828,1739303453628,-753.86,0.00012739,2]
[352774829,1739303453637,-507.04,0.00012739,2]
[352774830,1739303453646,-500.0,0.00012739,2]
[352774831,1739303453657,-712.89,0.00012739,2]
[352774832,1739303453666,-11677.3,0.00012739,2]
[352774833,1739303453676,-926.69,0.00012739,2]
[352774834,1739303453686,-3567.5,0.00012739,2]
[352774835,1739303453695,-595.15,0.00012739,2]
[352774836,1739303453704,-1309.09,0.00012739,2]
[352774837,1739303453713,-500.0,0.00012739,2]
[352774838,1739303453723,-500.0,0.00012739,2]
[352774839,1739303453732,-500.0,0.00012739,2]
[352774840,1739303453743,-500.0,0.00012739,2]
[352774841,1739303453753,-681.09,0.00012739,2]
[352774842,1739303453762,-1265.35,0.00012739,2]
[352774843,1739303453771,-500.0,0.00012739,2]
[352774844,1739303453782,-530.01,0.00012739,2]
[352774845,1739303453791,-510.18,0.00012739,2]
[352774846,1739303453801,-500.0,0.00012739,2]
[352774847,1739303453811,-500.0,0.00012739,2]
[352774848,1739303453822,-500.0,0.00012739,2]
[352774849,1739303453832,-500.0,0.00012739,2]
[352774850,1739303453842,-668.36,0.00012739,2]
[352774851,1739303453852,-1386.19,0.00012739,2]
[352774852,1739303453862,-500.0,0.00012739,2]
[352774853,1739303453872,-4370.0,0.00012739,2]
[352774854,1739303453881,-1808.29,0.00012739,2]
[352774855,1739303453891,-1000.0,0.00012759,2]
[352774856,1739303453901,-1000.9887709,0.00012759,2]
[352774857,1739303453911,-1000.0,0.00012759,2]
[352774858,1739303453921,-1000.0,0.00012796,2]
[352774859,1739303453930,-1000.0,0.00012807,2]
[352774860,1739303453940,-160.0,0.00012822,11]
[352774861,1739303453949,-168.96670563,0.00012822,5]
[352774862,1739303453960,-1005.07845641,0.00012864,2]
[352774863,1739303453970,-500.0,0.00012876,2]
[352774864,1739303453979,-821.36,0.00012876,2]
[352774865,1739303453989,-151.0,0.00012876,2]
[352774866,1739303453998,-245.003462,0.00012876,2]
[352774867,1739303454009,-479.15468201,0.00012876,2]
[352774868,1739303454018,-154.36607392,0.00012876,2]
[352774869,1739303454028,-1048.82,0.00012876,2]
[352774870,1739303454037,-758.1,0.00012876,2]
[352774871,1739303454046,-753.86,0.00012876,2]
[352774872,1739303454056,-507.04,0.00012876,2]
[352774873,1739303454066,-500.0,0.00012876,2]
[352774874,1739303454075,-712.89,0.00012876,2]
[352774875,1739303454085,-11677.3,0.00012876,2]
[352774876,1739303454094,-926.69,0.00012876,2]
[352774877,1739303454104,-3567.5,0.00012876,2]
[352774878,1739303454113,-595.15,0.00012876,2]
[352774879,1739303454122,-1309.09,0.00012876,2]
[352774880,1739303454131,-500.0,0.00012876,2]
[352774881,1739303454140,-500.0,0.00012876,2]
[352774882,1739303454149,-526.51607273,0.00012876,2]
[352774883,1739303454161,-500.0,0.00012876,2]
[352774884,1739303454171,-681.09,0.00012876,2]
[352774885,1739303454180,-1265.35,0.00012876,2]
[352774886,1739303454191,-420.77036544,0.00012876,2]
[352774887,1739303454201,-530.01,0.00012876,2]
[352774888,1739303454211,-510.18,0.00012876,2]
[352774889,1739303454220,-500.0,0.00012876,2]
[352774890,1739303454230,-500.0,0.00012876,2]
[352774891,1739303454239,-500.0,0.00012876,2]
[352774892,1739303454249,-500.0,0.00012876,2]
[352774893,1739303454259,-668.36,0.00012876,2]
[352774894,1739303454268,-1386.19,0.00012876,2]
[352774895,1739303454278,-500.0,0.00012876,2]
[352774896,1739303454287,-4370.0,0.00012876,2]
[352774897,1739303454297,-1808.29,0.00012876,2]
[352774898,1739303454307,-1000.0,0.00012889,2]
[352774899,1739303454317,-1000.0,0.00012892,2]
[352774900,1739303454327,-157.09,0.00012941,2]
[352774901,1739303454336,-1000.0,0.00012963,2]
[352774902,1739303454345,-500.0,0.00012973,2]
[352774903,1739303454354,-500.0,0.00012973,2]
[352774904,1739303454363,-500.0,0.00012973,2]
[352774905,1739303454371,-500.0,0.00012973,2]
[352774906,1739303454381,-501.16099705,0.00012973,2]
[352774907,1739303454390,-500.0,0.00012973,2]
[352774908,1739303454399,-2373.65726067,0.00012981,2]
[352774909,1739303454414,-1000.0,0.00012995,2]
[352774910,1739303454423,-188599.58494606,0.00013,2]
[352774911,1739303454432,-1842643.91726407,0.00013,2]
[352774912,1739303454442,-2902.79609449,0.00013,2]
[352774913,1739303454452,-51272.44427602,0.00013,2]
[352774914,1739303454463,-45435.23799556,0.00013,2]
[352774915,1739303454472,-189.0,0.00013,2]
[352774916,1739303454482,-151.0,0.00013,2]
[352774917,1739303454491,-151.0,0.00013,2]
[352774918,1739303454501,-151.0,0.00013,2]
[352774919,1739303454511,-245.003462,0.00013,2]
[352774920,1739303454520,-245.003462,0.00013,2]
[352774921,1739303454530,-245.003462,0.00013,2]
[352774922,1739303454540,-245.003462,0.00013,2]
[352774923,1739303454550,-821.36,0.00013013,2]
[352774924,1739303454560,-1048.82,0.00013013,2]
[352774925,1739303454570,-758.1,0.00013013,2]
[352774926,1739303454580,-753.86,0.00013013,2]
[352774927,1739303454590,-507.04,0.00013013,2]
[352774928,1739303454600,-500.0,0.00013013,2]
[352774929,1739303454610,-712.89,0.00013013,2]
[352774930,1739303454619,-11677.3,0.00013013,2]
[352774931,1739303454629,-926.69,0.00013013,2]
[352774932,1739303454639,-3567.5,0.00013013,2]
[352774933,1739303454648,-595.15,0.00013013,2]
[352774934,1739303454662,-1309.09,0.00013013,2]
[352774935,1739303454672,-500.0,0.00013013,2]
[352774936,1739303454682,-500.0,0.00013013,2]
[352774937,1739303454693,-500.0,0.00013013,2]
[352774938,1739303454702,-681.09,0.00013013,2]
[352774939,1739303454711,-1265.35,0.00013013,2]
[352774940,1739303454722,-530.01,0.00013013,2]
[352774941,1739303454731,-510.18,0.00013013,2]
[352774942,1739303454740,-500.0,0.00013013,2]
[352774943,1739303454750,-500.0,0.00013013,2]
[352774944,1739303454759,-500.0,0.00013013,2]
[352774945,1739303454769,-500.0,0.00013013,2]
[352774946,1739303454779,-668.36,0.00013013,2]
[352774947,1739303454788,-1386.19,0.00013013,2]
[352774948,1739303454798,-500.0,0.00013013,2]
[352774949,1739303454807,-4370.0,0.00013013,2]
[352774950,1739303454817,-1808.29,0.00013013,2]
[352774951,1739303454827,-5006.05462871,0.00013097,2]
[352774952,1739303454836,-2000.0,0.000131,2]
[352774953,1739303454846,-2000.0,0.00013123,28]
[352774954,1739303454855,-2000.0,0.00013123,28]
[352774955,1739303454864,-2000.0,0.00013123,28]
[352774956,1739303454874,-2000.0,0.00013123,28]
[352774957,1739303454884,-2000.0,0.00013123,28]
[352774958,1739303454893,-2000.0,0.00013123,28]
[352774959,1739303454902,-2000.0,0.00013123,28]
[352774960,1739303454914,-2000.0,0.00013123,28]
[352774961,1739303454923,-2000.0,0.00013123,28]
[352774962,1739303454933,-2000.0,0.00013123,28]
[352774963,1739303454943,-500.0,0.0001315,2]
[352774964,1739303454953,-821.36,0.0001315,2]
[352774965,1739303454962,-1048.82,0.0001315,2]
[352774966,1739303454972,-758.1,0.0001315,2]
[352774967,1739303454981,-753.86,0.0001315,2]
[352774968,1739303454991,-507.04,0.0001315,2]
[352774969,1739303455000,-500.0,0.0001315,2]
[352774970,1739303455010,-712.89,0.0001315,2]
[352774971,1739303455020,-11677.3,0.0001315,2]
[352774972,1739303455030,-926.69,0.0001315,2]
[352774973,1739303455039,-3567.5,0.0001315,2]
[352774974,1739303455048,-595.15,0.0001315,2]
[352774975,1739303455057,-1309.09,0.0001315,2]
[352774976,1739303455066,-500.0,0.0001315,2]
[352774977,1739303455075,-500.0,0.0001315,2]
[352774978,1739303455206,-362.85249671,0.0001315,2]
[352774979,1739303455216,-681.09,0.0001315,2]
[352774980,1739303455226,-1265.35,0.0001315,2]
[352774981,1739303455235,-530.01,0.0001315,2]
[352774982,1739303455245,-510.18,0.0001315,2]